Cogmind - Beta 14 @@@ ROGUE MODE // 2024.09.26 @ 18:21:03 Player: Mutetourette Result: Self-destructed Performance ------------- Evolutions (1) 500 Regions Visited (2) 400 Robots Destroyed (20) 100 Value Destroyed (579) 579 Prototype IDs (0) 0 Alien Tech Used (0) 0 Bonus (11) 11 TOTAL SCORE: 1590 Bonus ------- High Alert Combat Kills 11 Cogmind --------- Core Integrity 281/400 Matter 114/300 Energy 251/265 System Corruption 0% Temperature Cool (6) Movement Flying (29) Location -9/Materials Parts ------- > --- POWER (1) -------- Improved Ion Engine > --- PROPULSION (3) --- Cesium-ion Thruster Cesium-ion Thruster Cesium-ion Thruster > --- UTILITY (3) ------ Cooling System Seismic Detector > --- WEAPON (2) ------- Autogun > --- INVENTORY (5) ---- Light Treads Light Treads Cooling System EM Pulse Gun Heavy Assault Rifle Peak State ------------ > --- POWER ------------ Improved Ion Engine > --- PROPULSION ------- Cesium-ion Thruster Cesium-ion Thruster Cesium-ion Thruster > --- UTILITY ---------- Cooling System Medium Storage Unit Seismic Detector > --- WEAPON ----------- Autogun > --- INVENTORY -------- Light Ion Engine Light Treads Light Treads Improved Treads Cooling System Cooling System Visual Processing Unit EM Pulse Gun Heavy Assault Rifle Mini Grenade Launcher [Rating: 18] Favorites ----------- Power Ion Engine Engine Ion Engine Propulsion Improved Aluminum Leg Leg Improved Aluminum Leg Flight Unit Cesium-ion Thruster Utility Seismic Detector Device Seismic Detector Storage Medium Storage Unit Weapon Shotgun Ballistic Gun Shotgun Build | -11 -10 -9 ------- Run | Yrd Mat Mat Slots Evolved 2 | . . 2 Power . | . . . Propulsion 1 | . . 1 Utility 1 | . . 1 Weapon . | . . . Parts Attached 26 | 8 5 13 Power 5 | 2 . 3 Engine 5 | 2 . 3 Core . | . . . Reactor . | . . . Propulsion 9 | 2 2 5 Treads . | . . . Leg 6 | 2 2 2 Wheel . | . . . Hover . | . . . Flight 3 | . . 3 Utility 5 | 2 1 2 Device 3 | 1 . 2 Storage 2 | 1 1 . Processor . | . . . Hackware . | . . . Protection . | . . . Artifact . | . . . Weapon 7 | 2 2 3 Energy Gun . | . . . Energy Cannon . | . . . Ballistic Gun 7 | 2 2 3 Ballistic Cannon . | . . . Launcher . | . . . Special Weapon . | . . . Impact Weapon . | . . . Slashing Weapon . | . . . Piercing Weapon . | . . . Special Melee Weapon . | . . . Unidentified Prototypes . | . . . Parts Lost . | . . . Power . | . . . Propulsion . | . . . Utility . | . . . Weapon . | . . . Highest Loss Streak . | . . . To Critical Strikes . | . . . Average Slot Usage (%) 98 | . 99 98 Engine 11 | . 14 11 Leg 31 | . 28 32 Device 19 | . 14 21 Storage 11 | . 14 11 Ballistic Gun 23 | . 27 21 Peak Build Rating 18 | 7 12 18 Average Rating 13 | 4 11 16 On Entrance 6 | . 7 12 Naked Turns . | . . . Heaviest Build 26 | 14 22 26 Greatest Support 39 | 20 26 39 Greatest Overweight (x) 4 | . . 4 Average Overweight (x) . | . . . Largest Inventory Capacity 10 | 8 10 10 Average Capacity 9 | 6 9 9 Most Carried 10 | 5 9 10 Average Carried 8 | 4 8 8 Final Capacity 10 | 8 10 5 Final Carried 9 | 4 9 5 Class Distribution -------------------- 100% | Mutant Dominant Class ---------------- Mutant | -10/Materials Mutant | -9/Materials Resources | -11 -10 -9 ----------- Run | Yrd Mat Mat Matter Collected 702 | 193 12 497 Remotely . | . . . Salvage Created 649 | 11 12 626 Parts 41 | 3 1 37 Haulers Intercepted 1 | . . 1 Recyclers Shooed . | . . . Parts Field Recycled . | . . . Retrieved Matter . | . . . Parts Self-Destructed . | . . . Prevented . | . . . Kills | -11 -10 -9 ------- Run | Yrd Mat Mat Combat Hostiles Destroyed 15 | . . 15 Guns 15 | . . 15 Classes Destroyed 7 | 1 1 5 Worker 1 | . . 1 Tunneler 1 | 1 . . Hauler 1 | . . 1 Watcher 2 | . 1 1 Swarmer 4 | . . 4 Grunt 8 | . . 8 Sentry 3 | . . 3 Best Kill Streak 4 | 1 1 4 Combat Bots Only 4 | . . 4 Max Kills in Single Turn 2 | 1 1 2 Gunslinging 1 | . . 1 Exploded . | . . . Melee . | . . . Uniques/NPCs Destroyed . | . . . Combat | -11 -10 -9 -------- Run | Yrd Mat Mat Hostile Shots Fired 54 | . . 54 Missed 12 | . . 12 Damage Taken 624 | . 94 530 Core 119 | . . 119 Absorbed by Shields . | . . . Core Remaining (%) 100 | 100 100 . Volleys Fired 55 | 1 3 51 Largest 2 | 2 2 2 Hottest 46 | 40 46 46 Shots Fired 110 | 2 6 102 Gun 110 | 2 6 102 Cannon . | . . . Launcher . | . . . Special . | . . . Kinetic 110 | 2 6 102 Thermal . | . . . Explosive . | . . . Electromagnetic . | . . . Robot Hit Streak 5 | 1 2 5 Robot Miss Streak 4 | . 4 3 Penetration Max . | . . . Secondary Targets 1 | . . 1 Max Gunslinging Chain 1 | . . 1 Shots Hit Robots 66 | 1 3 62 Core Hits 32 | 1 1 30 Critical Kills 1 | . . 1 Critical Parts Destroyed . | . . . Critical Strikes 1 | . . 1 Destroy 1 | . . 1 Melee Attacks . | . . . Impact . | . . . Slashing . | . . . Piercing . | . . . Sneak Attacks . | . . . Combat Hostiles . | . . . Follow-up Attacks . | . . . Damage Inflicted 969 | 11 32 926 Guns 944 | 11 32 901 Cannons . | . . . Explosions . | . . . Melee . | . . . Ramming 25 | . . 25 Kinetic 944 | 11 32 901 Thermal . | . . . Explosive . | . . . Electromagnetic . | . . . Impact . | . . . Slashing . | . . . Piercing . | . . . Highest Corruption . | . . . Average Corruption . | . . . Corruption Purged . | . . . Corruption Blocked . | . . . Overload Shots . | . . . Overflow Damage . | . . . Projectiles . | . . . Explosions . | . . . Melee . | . . . Knockbacks . | . . . Impact . | . . . Kinetic . | . . . Secondary . | . . . Self-Inflicted Damage 95 | . 95 . Shots 1 | . 1 . Rammed . | . . . Targets Rammed 3 | . . 3 Kicked 3 | . . 3 Crushed . | . . . Highest Temperature . | . . . Average Temperature . | . . . Received Heat Transfer 186 | . . 186 Siege Activations . | . . . Robots Corrupted . | . . . Combat Hostiles . | . . . Parts Fried . | . . . Impact Corruptions . | . . . Robots Melted . | . . . Combat Hostiles . | . . . Parts Melted . | . . . Heat Transferred . | . . . Parts Sabotaged . | . . . Parts Stolen . | . . . Parts Stripped . | . . . Power Chain Reactions . | . . . Alert | -11 -10 -9 ------- Run | Yrd Mat Mat Peak Influence 402 | 5 98 402 Initial 40 | . 3 40 Average 166 | 1 63 237 Maximum Alert Level 2 | . . 2 Low Security (%) 58 | 100 100 32 Level 1 37 | . . 60 Level 2 3 | . . 6 Level 3 . | . . . Level 4 . | . . . Level 5 . | . . . High Security . | . . . Max Security . | . . . Squads Dispatched 5 | . 1 4 Investigation 3 | . . 3 Extermination . | . . . Reinforcement 2 | . 1 1 Assault . | . . . Garrison . | . . . Intercept . | . . . Searches Triggered . | . . . Construction Impeded . | . . . Haulers Reinforced . | . . . Active Scanning Responses . | . . . Cargo Convoy Interrupts . | . . . Stealth | -11 -10 -9 --------- Run | Yrd Mat Mat Distress Signals 2 | . 1 1 Communications Jammed . | . . . Distress Signals . | . . . Times Spotted 27 | . 6 21 Peak Tracking Total 4 | . 2 4 Tactical Retreats 1 | . . 1 Traps | -11 -10 -9 ------- Run | Yrd Mat Mat Traps Triggered . | . . . Indirectly . | . . . Trap Hack Attempts . | . . . Triggered . | . . . Disarmed . | . . . Reprogrammed . | . . . Reused . | . . . Traps Extracted . | . . . Installed . | . . . Triggered . | . . . Machines | -11 -10 -9 ---------- Run | Yrd Mat Mat Machines Disabled 3 | . 2 1 Max in Single Turn 2 | . 2 1 Machines Repaired . | . . . Machines Dismantled . | . . . Machines Sabotaged 1 | . . 1 Overloaded Fab Kills . | . . . Hacking | -11 -10 -9 --------- Run | Yrd Mat Mat Machines Accessed 5 | . 1 4 Terminals 4 | . 1 3 Fabricators . | . . . Repair Stations . | . . . Recycling Units 1 | . . 1 Scanalyzers . | . . . Garrison Access . | . . . Total Hacks 11 | . 1 10 Successful 5 | . 1 4 Failed 6 | . . 6 Catastrophic . | . . . Database Lockouts . | . . . Manual 11 | . 1 10 Terminals 10 | . 1 9 Fabricators . | . . . Repair Stations . | . . . Recycling Units 1 | . . 1 Scanalyzers . | . . . Garrison Access . | . . . Terminal Hacks . | . . . Fabricator Hacks . | . . . Repair Station Hacks . | . . . Recycling Unit Hacks . | . . . Scanalyzer . | . . . Garrison Access Hacks . | . . . Unauthorized Hacks 5 | . 1 4 Terminals 4 | . 1 3 Assimilate 2 | . 1 1 Sabotage 2 | . . 2 Fabricators . | . . . Repair Stations . | . . . Recycling Units 1 | . . 1 Tunnel 1 | . . 1 Scanalyzers . | . . . Garrison Access . | . . . Data Cores Recovered . | . . . Used . | . . . Hacking Detections 2 | . . 2 Full Trace Events . | . . . Feedback Events . | . . . Feedback Blocked . | . . . Robot Schematics Acquired . | . . . Robots Built . | . . . Authchips . | . . . Time . | . . . Total Robot Build Rating . | . . . Part Schematics Acquired . | . . . Parts Built . | . . . Authchips . | . . . Time . | . . . Total Part Build Rating . | . . . Parts Repaired . | . . . Time . | . . . Parts Recycled . | . . . Recycled Matter . | . . . Retrieved Matter . | . . . Retrieved Components . | . . . Parts Scanalyzed . | . . . Part Schematics Acquired . | . . . Parts Damaged . | . . . Bothacking | -11 -10 -9 ------------ Run | Yrd Mat Mat Used RIF Installer . | . . . Robots Hacked . | . . . Non-combat . | . . . Combat . | . . . Robot Hacks Applied . | . . . Relay Couplers Released . | . . . Fabnet Peak Effective % . | . . . Robots Rewired . | . . . Allies Hacked . | . . . Hacks Repelled . | . . . Allies | -11 -10 -9 -------- Run | Yrd Mat Mat Total Allies . | . . . Largest Group . | . . . Highest-Rated Group . | . . . Highest-Rated Ally . | . . . Total Orders . | . . . Ally Attacks . | . . . Total Damage . | . . . Kills . | . . . Allies Corrupted . | . . . Allies Melted . | . . . Intel | -11 -10 -9 ------- Run | Yrd Mat Mat Robot Analysis Total . | . . . Derelict Logs Recovered . | . . . Drone Launches . | . . . Drone Recoveries . | . . . Exploration | -11 -10 -9 ------------- Run | Yrd Mat Mat Turns Passed 993 | 74 304 615 Spaces Moved 444 | 56 113 275 Core 18 | 18 . . Treads . | . . . Legs 419 | 38 113 268 Wheels . | . . . Hover . | . . . Flight 7 | . . 7 Fastest Speed 29 | 50 120 29 Average Speed 116 | 97 120 119 Slowest Speed 355 | 120 120 355 Overloaded Moves . | . . . Propulsion Burnouts . | . . . Robots Hopped . | . . . Cave-ins Triggered . | . . . Exploration Rate (%) 18 | 3 31 21 Regions Visited 2 Branch Regions . Pre-discovered Areas 1 | . . 1 Known Exits Taken . | . . . Unknown Exits Taken 2 | 1 1 . Scrap Searched . | . . . Spaces Dug . | . . . Terrain Destroyed 25 | . 25 . Melee . | . . . Projectile . | . . . AOE 25 | . 25 . Terrain Rammed . | . . . Walls Destroyed . | . . . Machines Disabled . | . . . Actions | -11 -10 -9 --------- Run | Yrd Mat Mat Total 826 | 72 276 478 Wait 255 | . 141 114 Move 442 | 55 112 275 Hop . | . . . Pick Up 25 | 7 10 8 Fast Attach 8 | 4 . 4 Attach 8 | 3 2 3 Detach . | . . . Swap 10 | 1 3 6 Drop 20 | 1 5 14 Fire 55 | 1 3 51 Melee . | . . . Ram . | . . . Kick 3 | . . 3 Crush . | . . . Escape Stasis . | . . . Rewire . | . . . Trap . | . . . Miscellaneous . | . . . Route ------- -11/Scrapyard -10/Materials -9/Materials History --------- Turn | Location | Event 2 | -11/Scrapyard | Met Revision 17 5 | -11/Scrapyard | Discovered new exit (range 16) 75 | -11/Scrapyard | Entered Materials 308 | -10/Materials | Build established: Mutant 368 | -10/Materials | Discovered new exit (range 10) 379 | -10/Materials | Entered another Materials area 379 | -9/Materials | Evolved 2 slots: Propulsion x1, Utility x1 994 | -9/Materials | Self-destructed Last Messages --------------- 00886_ S-10 Pest destroyed. 00886_ Switching to secondary target: S-10 Pest. 00886_ S-10 Pest destroyed. 00900_ Acquired 19 matter. 00907_ Acquired 16 matter. 00918_ Acquired 19 matter. 00923_ Critical hit (Burn: +37). 00923_ K-01 Serf cleans the Nuclear Reactor. 00923_ Acquired 16 matter. 00952_ K-01 Serf cleans the Nuclear Reactor. 00955_ Y-45 Defender destroyed. 00955_ Destroyed Wheel. 00956_ Acquired 54 matter. 00956_ K-01 Serf cleans the Nuclear Reactor. 00959_ Dropped Imp. Ion Engine. 00960_ Dropped Autogun. 00962_ Acquired Hvy. Assault Rifle. 00981_ Dropped Imp. Aluminum Leg. 00982_ Acquired Cesium-ion Thruster. 00992_ Dropped Med. Storage Unit. Map ----- +----------------------------------------------------+ | ?????????????????????????????????????????????????? | | ?????????????????????????????????????????????????? | | ?????????????????????????????????????????????????? | | ?????????????????????????????????????????????????? | | ?????????????????????????????????????????????????? | | ?????????????????????????????????????????????????? | | ?????????????????????????????????????????????????? | | ?????????????????????????????????????????????????? | | ?????????????????????????????????????????????????? | | ??????????????????????????????????????????? ?????? | | ??????????????????????????????????????????? ????? | | ?????????????????????????????????????????? ????? | | ?????????????????????????????????????????? #??? | | ?????????????????????????????????????????? ???? | | ?????????????????????????????????????????? ???? | | ?????????????????????????????????????????? #???? | | ?????????????????????????????????????????# #???? | | ?????????????????????????????????????????# #???? | | ?????????????????????????????????????????# ##### | | ???????????????????????????????????????### | | ???????????????????????????????????????# | | ??????????????????????########?????????# | | ??????????????????????#!![[=!#?????????# """ | | ??????????????????????#!![[!!#?????????# T" | | ??????????????????????# ]===#??######## | | ??????????????????????###@*=##??# # | | ???????????????########## #####= [*+[ | | ???????????????+ [ += ! #[ | | ???????????????# ! #####* !! # """ | | ???????????????# """## !! # """ | | ???????????????#]] ""T"" R"## !! # """ | | ???????????????#]] """"" """######### | | ???????????????# ####???????# | | ????????????? #??????????# = | | ????????????####### #?#####????# ##### % | | ??????????????????# ###### ##?# ###### #??## * | | ??????????????????# ?????# #??# T #??#T | | ??????????????????#??????#o#??# #######+###### | | ????????????????????????? ??##!##??# # | | ???????????????????????#! ### ##### # | | ???????????????????????# T ^! !!! + # | | ???????????????????????# ###+##### """"" ### | | ????????????????????????? ???# !!! ## """"" #?? | | ?????????????????????????????#!!!%[ ## """"" #?? | | ?????????????????????????????#**! # #?? | | ?????????????????????????????# = [## #?? | | ?????????????????????????????########?######?###?? | | | | | | | +----------------------------------------------------+ Best States ------------- Heat Dissipation 50 Energy Generation 12 Energy Capacity 265 Matter Stores 233 Matter Capacity 300 Sight Range 16 Terrain Scan Density 10 Evasion (%) 55 Item Schematics ----------------- None Robot Schematics ------------------ None Fabricated ------------ Nothing Alien Tech Used ----------------- None Achievements -------------- Brute Force Party Time Challenges ------------ None Game ------ Seed BraceHeavySlayer Manual? 0 Play Time 00:15:01 Cumulative 14.1 hours Start 2024.09.25 @ 19:14:28 End 2024.09.26 @ 18:21:03 Sessions 3 Manual Loads 0 Difficulty Rogue Special Mode None Game No. 18 Rogue 18 Adventurer 0 Explorer 0 Win Type - Total 0 Types 0/0/0/0/0/0/0/0/0 Lore% 5 Gallery% 18 Achievement% 17 Wizard Run 0 Options --------- Layout 1 ASCII 0 Keyboard 0 Movement Mouse Keybinds 0 Fullscreen 1 Font 24/Smallcaps Map View 50x35 Zoom Use 0% Tactical HUD 1 Map Filters NONE Filters NONE Steam 1 RUN: 26d4c32c-f560-4afc-91dc-271d070660ad